fUSD/lending_fUSD_20250123
["ID","MTS","AMOUNT","RATE_DAILY","PERIOD"]
[350114157,1737633053661,-500.0,0.00016986,2]
[350114158,1737633053671,-500.0,0.00016986,2]
[350114159,1737633053681,-500.0,0.00016986,2]
[350114160,1737633053691,-500.0,0.00016986,2]
[350114161,1737633053700,-500.0,0.00016986,2]
[350114162,1737633053710,-500.0,0.00016986,2]
[350114163,1737633053719,-500.0,0.00016986,2]
[350114164,1737633053729,-500.0,0.00016986,2]
[350114165,1737633053739,-500.0,0.00016986,2]
[350114166,1737633053748,-500.0,0.00016986,2]
[350114167,1737633053758,-500.0,0.00016986,2]
[350114168,1737633053767,-500.0,0.00016986,2]
[350114169,1737633053776,-500.0,0.00016986,2]
[350114170,1737633053786,-500.0,0.00016986,2]
[350114171,1737633053795,-500.0,0.00016986,2]
[350114172,1737633053805,-500.0,0.00016986,2]
[350114173,1737633053814,-513.85547775,0.00016986,2]
[350114174,1737633053823,-640.69,0.00016986,2]
[350114175,1737633053833,-524.28799583,0.00016986,2]
[350114176,1737633053842,-500.0,0.00016986,2]
[350114177,1737633053852,-500.0,0.00016986,2]
[350114178,1737633053861,-500.0,0.00016986,2]
[350114179,1737633053870,-500.0,0.00016986,2]
[350114180,1737633053880,-706.83,0.00016986,2]
[350114181,1737633053889,-500.0,0.00016986,2]
[350114182,1737633053899,-500.0,0.00016986,2]
[350114183,1737633053908,-500.0,0.00016986,2]
[350114184,1737633053918,-500.0,0.00016986,2]
[350114185,1737633053927,-199.0450684,0.00016986,2]
[350114186,1737633053936,-500.0,0.00016986,2]
[350114187,1737633053946,-500.0,0.00016986,2]
[350114188,1737633053955,-500.0,0.00016986,2]
[350114189,1737633053964,-691.97,0.00016986,2]
[350114190,1737633053974,-500.0,0.00016986,2]
[350114191,1737633053983,-244.77538308,0.00016986,2]
[350114192,1737633053992,-570.8,0.00016986,2]
[350114193,1737633054002,-500.0,0.00016986,2]
[350114194,1737633054012,-500.0,0.00016986,2]
[350114195,1737633054021,-500.0,0.00016986,2]
[350114196,1737633054031,-500.0,0.00016986,2]
[350114197,1737633054040,-500.0,0.00016986,2]
[350114198,1737633054049,-500.0,0.00016986,2]
[350114199,1737633054058,-500.0,0.00016986,2]
[350114200,1737633054067,-552.41,0.00016986,2]
[350114201,1737633054078,-500.0,0.00016986,2]
[350114202,1737633054087,-605.84,0.00016986,2]
[350114203,1737633054096,-539.31311923,0.00016986,2]
[350114204,1737633054105,-500.0,0.00016986,2]
[350114205,1737633054115,-521.4,0.00016986,2]
[350114206,1737633054124,-500.0,0.00016986,2]
[350114207,1737633054133,-500.0,0.00016986,2]
[350114208,1737633054142,-630.89,0.00016986,2]
[350114209,1737633054151,-500.0,0.00016986,2]
[350114210,1737633054160,-500.0,0.00016986,2]
[350114211,1737633054170,-500.0,0.00016986,2]
[350114212,1737633054179,-500.0,0.00016986,2]
[350114213,1737633054189,-738.64,0.00016986,2]
[350114214,1737633054198,-500.0,0.00016986,2]
[350114215,1737633054207,-500.0,0.00016986,2]
[350114216,1737633054216,-500.0,0.00016986,2]
[350114217,1737633054225,-500.0,0.00016986,2]
[350114218,1737633054234,-500.0,0.00016986,2]
[350114219,1737633054245,-300.0,0.00016986,2]
[350114220,1737633054255,-508.63567815,0.00016986,2]
[350114221,1737633054266,-500.0,0.00016986,2]
[350114222,1737633054277,-670.93,0.00016986,2]
[350114223,1737633054288,-500.0,0.00016986,2]
[350114224,1737633054299,-500.0,0.00016986,2]
[350114225,1737633054308,-500.0,0.00016986,2]
[350114226,1737633054319,-500.0,0.00016986,2]
[350114227,1737633054331,-500.0,0.00016986,2]
[350114228,1737633054346,-500.0,0.00016986,2]
[350114229,1737633054356,-311.42165117,0.00016986,2]
[350114230,1737633054369,-500.0,0.00016986,2]
[350114231,1737633054381,-500.0,0.00016986,2]
[350114232,1737633054390,-500.0,0.00016986,2]
[350114233,1737633054400,-500.0,0.00016986,2]
[350114234,1737633054410,-500.0,0.00016986,2]
[350114235,1737633054419,-500.0,0.00016986,2]
[350114236,1737633054429,-500.0,0.00016986,2]
[350114237,1737633054439,-500.0,0.00016986,2]
[350114238,1737633054449,-500.0,0.00016986,2]
[350114239,1737633054459,-500.0,0.00016986,2]
[350114240,1737633054468,-638.59260118,0.00016986,2]
[350114241,1737633054478,-716.27,0.00016986,2]
[350114242,1737633054487,-500.0,0.00016986,2]
[350114243,1737633054497,-502.94794006,0.00016986,2]
[350114244,1737633054507,-500.0,0.00016986,2]
[350114245,1737633054516,-500.0,0.00016986,2]
[350114246,1737633054525,-500.0,0.00016986,2]
[350114247,1737633054535,-500.0,0.00016986,2]
[350114248,1737633054544,-508.30711593,0.00016986,2]
[350114249,1737633054554,-518.72,0.00016986,2]
[350114250,1737633054563,-340.01352186,0.00016986,2]
[350114251,1737633054572,-500.0,0.00016986,2]
[350114252,1737633054581,-634.26115941,0.00016986,2]
[350114253,1737633054591,-500.0,0.00016986,2]
[350114254,1737633054600,-500.0,0.00016986,2]
[350114255,1737633054610,-500.0,0.00016986,2]
[350114256,1737633054620,-514.37924245,0.00016986,2]
[350114257,1737633054629,-500.0,0.00016986,2]
[350114258,1737633054638,-500.0,0.00016986,2]
[350114259,1737633054647,-500.0,0.00016986,2]
[350114260,1737633054657,-500.0,0.00016986,2]
[350114261,1737633054666,-500.0,0.00016986,2]
[350114262,1737633054676,-524.27162252,0.00016986,2]
[350114263,1737633054686,-500.0,0.00016986,2]
[350114264,1737633054696,-500.0,0.00016986,2]
[350114265,1737633054705,-500.0,0.00016986,2]
[350114266,1737633054715,-500.0,0.00016986,2]
[350114267,1737633054724,-508.80286704,0.00016986,2]
[350114268,1737633054734,-507.61,0.00016986,2]
[350114269,1737633054743,-500.0,0.00016986,2]
[350114270,1737633054753,-500.0,0.00016986,2]
[350114271,1737633054762,-500.0,0.00016986,2]
[350114272,1737633054772,-500.0,0.00016986,2]
[350114273,1737633054782,-597.61,0.00016986,2]
[350114274,1737633054792,-500.0,0.00016986,2]
[350114275,1737633054801,-500.0,0.00016986,2]
[350114276,1737633054810,-500.0,0.00016986,2]
[350114277,1737633054819,-511.21,0.00016986,2]
[350114278,1737633054828,-500.0,0.00016986,2]
[350114279,1737633054837,-1053.49,0.00016986,2]
[350114280,1737633054847,-627.45,0.00016986,2]
[350114281,1737633054857,-500.0,0.00016986,2]
[350114282,1737633054866,-500.0,0.00016986,2]
[350114283,1737633054875,-844.34,0.00016986,2]
[350114284,1737633054885,-500.0,0.00016986,2]
[350114285,1737633054894,-2143.34,0.00016986,2]
[350114286,1737633054904,-500.0,0.00016986,2]
[350114287,1737633054913,-500.0,0.00016986,2]
[350114288,1737633054923,-500.0,0.00016986,2]
[350114289,1737633054932,-500.0,0.00016986,2]
[350114290,1737633054942,-500.0,0.00016986,2]
[350114291,1737633054952,-514.47,0.00016986,2]
[350114292,1737633054961,-1944.09,0.00016986,2]
[350114293,1737633054970,-500.0,0.00016986,2]
[350114294,1737633054980,-500.0,0.00016986,2]
[350114295,1737633054989,-917.33,0.00016986,2]
[350114296,1737633054999,-983.53,0.00016986,2]
[350114297,1737633055009,-500.0,0.00016986,2]
[350114298,1737633055018,-507.89131143,0.00016986,2]
[350114299,1737633055027,-1853.96,0.00016986,2]
[350114300,1737633055037,-500.0,0.00016986,2]
[350114301,1737633055047,-500.0,0.00016986,2]
[350114302,1737633055056,-500.0,0.00016986,2]
[350114303,1737633055066,-500.0,0.00016986,2]
[350114304,1737633055075,-500.0,0.00016986,2]
[350114305,1737633055086,-676.76,0.00016986,2]
[350114306,1737633055095,-500.0,0.00016986,2]
[350114307,1737633055105,-796.2,0.00016986,2]
[350114308,1737633055115,-500.0,0.00016986,2]
[350114309,1737633055125,-500.0,0.00016986,2]
[350114310,1737633055135,-500.0,0.00016986,2]
[350114311,1737633055144,-500.0,0.00016986,2]
[350114312,1737633055153,-461.69288533,0.00016986,2]
[350114313,1737633055163,-500.0,0.00016986,2]
[350114314,1737633055173,-500.0,0.00016986,2]
[350114315,1737633055182,-675.73,0.00016986,2]
[350114316,1737633055192,-509.42535689,0.00016986,2]
[350114317,1737633055202,-500.0,0.00016986,2]
[350114318,1737633055211,-1256.35,0.00016986,2]
[350114319,1737633055221,-858.84,0.00016986,2]
[350114320,1737633055231,-500.0,0.00016986,2]
[350114321,1737633055240,-500.0,0.00016986,2]
[350114322,1737633055250,-754.19,0.00016986,2]
[350114323,1737633055260,-500.0,0.00016986,2]
[350114324,1737633055269,-500.0,0.00016986,2]
[350114325,1737633055279,-2322.81,0.00016986,2]
[350114326,1737633055289,-500.0,0.00016986,2]
[350114327,1737633055304,-500.0,0.00016986,2]
[350114328,1737633055313,-810.9,0.00016986,2]
[350114329,1737633055323,-500.0,0.00016986,2]
[350114330,1737633055332,-1818.34,0.00016986,2]
[350114331,1737633055342,-500.0,0.00016986,2]
[350114332,1737633055351,-500.0,0.00016986,2]
[350114333,1737633055360,-500.0,0.00016986,2]
[350114334,1737633055370,-500.0,0.00016986,2]
[350114335,1737633055379,-500.0,0.00016986,2]
[350114336,1737633055389,-2764.66,0.00016986,2]
[350114337,1737633055398,-1021.36,0.00016986,2]
[350114338,1737633055408,-500.0,0.00016986,2]
[350114339,1737633055417,-1563.53,0.00016986,2]
[350114340,1737633055426,-500.0,0.00016986,2]
[350114341,1737633055436,-500.0,0.00016986,2]
[350114342,1737633055445,-500.0,0.00016986,2]
[350114343,1737633055453,-500.0,0.00016986,2]
[350114344,1737633055463,-863.61,0.00016986,2]
[350114345,1737633055472,-1097.76,0.00016986,2]
[350114346,1737633055482,-500.0,0.00016986,2]
[350114347,1737633055491,-500.0,0.00016986,2]
[350114348,1737633055500,-610.13,0.00016986,2]
[350114349,1737633055509,-831.35,0.00016986,2]
[350114350,1737633055519,-500.0,0.00016986,2]
[350114351,1737633055528,-500.0,0.00016986,2]
[350114352,1737633055538,-684.27,0.00016986,2]
[350114353,1737633055548,-500.0,0.00016986,2]
[350114354,1737633055558,-1525.82,0.00016986,2]
[350114355,1737633055568,-1592.73,0.00016986,2]
[350114356,1737633055577,-500.0,0.00016986,2]
[350114357,1737633055587,-500.0,0.00016986,2]
[350114358,1737633055595,-500.0,0.00016986,2]
[350114359,1737633055605,-500.0,0.00016986,2]
[350114360,1737633055614,-500.0,0.00016986,2]
[350114361,1737633055625,-1608.41,0.00016986,2]
[350114362,1737633055634,-746.14,0.00016986,2]
[350114363,1737633055644,-1007.24,0.00016986,2]
[350114364,1737633055654,-2741.77,0.00016986,2]
[350114365,1737633055663,-1220.66,0.00016986,2]
[350114366,1737633055673,-238.9735716,0.00016986,2]
[350114367,1737633055682,-500.0,0.00016986,2]
[350114368,1737633055692,-500.0,0.00016986,2]
[350114369,1737633055701,-500.0,0.00016986,2]
[350114370,1737633055840,-1030.75,0.00016986,2]
[350114371,1737633055852,-599.39,0.00016986,2]
[350114372,1737633055861,-1056.34,0.00016986,2]
[350114373,1737633055871,-500.0,0.00016986,2]
[350114374,1737633055880,-500.0,0.00016986,2]
[350114375,1737633055890,-501.60100149,0.00016986,2]
[350114376,1737633055899,-2920.19,0.00016986,2]
[350114377,1737633055909,-500.0,0.00016986,2]
[350114378,1737633055918,-500.0,0.00016986,2]
[350114379,1737633055928,-892.26,0.00016986,2]
[350114380,1737633055937,-500.0,0.00016986,2]
[350114381,1737633055947,-500.0,0.00016986,2]
[350114382,1737633055956,-500.0,0.00016986,2]
[350114383,1737633055965,-500.0,0.00016986,2]
[350114384,1737633055974,-500.0,0.00016986,2]
[350114385,1737633055983,-500.0,0.00016986,2]
[350114386,1737633055993,-720.19,0.00016986,2]
[350114387,1737633056002,-1782.39,0.00016986,2]
[350114388,1737633056010,-500.0,0.00016986,2]
[350114389,1737633056019,-500.0,0.00016986,2]
[350114390,1737633056028,-980.9,0.00016986,2]
[350114391,1737633056038,-185.20861365,0.00016986,2]
[350114392,1737633056048,-547.20360967,0.00016986,2]
[350114393,1737633056058,-833.57,0.00016986,2]
[350114394,1737633056067,-500.0,0.00016986,2]
[350114395,1737633056076,-500.0,0.00016986,2]
[350114396,1737633056086,-500.0,0.00016986,2]
[350114397,1737633056096,-500.0,0.00016986,2]
[350114398,1737633056105,-2169.56,0.00016986,2]
[350114399,1737633056115,-500.0,0.00016986,2]
[350114400,1737633056124,-1872.72,0.00016986,2]
[350114401,1737633056134,-1526.03,0.00016986,2]
[350114402,1737633056143,-500.0,0.00016986,2]
[350114403,1737633056153,-500.0,0.00016986,2]
[350114404,1737633056164,-500.0,0.00016986,2]
[350114405,1737633056173,-500.0,0.00016986,2]
[350114406,1737633056183,-500.0,0.00016986,2]
[350114407,1737633056193,-500.0,0.00016986,2]
[350114408,1737633056202,-500.0,0.00016986,2]
[350114409,1737633056211,-500.0,0.00016986,2]
[350114410,1737633056221,-728.22,0.00016986,2]
[350114411,1737633056230,-500.0,0.00016986,2]
[350114412,1737633056240,-588.0,0.00016986,2]
[350114413,1737633056249,-500.0,0.00016986,2]
[350114414,1737633056258,-500.0,0.00016986,2]
[350114415,1737633056268,-500.0,0.00016986,2]
[350114416,1737633056277,-856.43,0.00016986,2]
[350114417,1737633056286,-500.0,0.00016986,2]
[350114418,1737633056300,-1505.85,0.00016986,2]
[350114419,1737633056309,-500.0,0.00016986,2]
[350114420,1737633056319,-607.33,0.00016986,2]
[350114421,1737633056329,-500.0,0.00016986,2]
[350114422,1737633056339,-937.43,0.00016986,2]
[350114423,1737633056349,-500.0,0.00016986,2]
[350114424,1737633056358,-500.0,0.00016986,2]
[350114425,1737633056367,-500.0,0.00016986,2]
[350114426,1737633056378,-500.0,0.00016986,2]
[350114427,1737633056389,-500.0,0.00016986,2]
[350114428,1737633056398,-500.0,0.00016986,2]
[350114429,1737633056408,-536.15352252,0.00016986,2]
[350114430,1737633056417,-500.0,0.00016986,2]
[350114431,1737633056427,-675.23,0.00016986,2]
[350114432,1737633056436,-651.34,0.00016986,2]
[350114433,1737633056446,-305.49460461,0.00016986,2]
[350114434,1737633056455,-1639.93,0.00016986,2]
[350114435,1737633056464,-2000.53,0.00016986,2]
[350114436,1737633056473,-500.0,0.00016986,2]
[350114437,1737633056482,-500.0,0.00016986,2]
[350114438,1737633056492,-500.0,0.00016986,2]
[350114439,1737633056501,-1022.19,0.00016986,2]
[350114440,1737633056510,-588.58324873,0.00016986,2]
[350114441,1737633056519,-500.0,0.00016986,2]
[350114442,1737633056528,-500.0,0.00016986,2]
[350114443,1737633056538,-554.72,0.00016986,2]
[350114444,1737633056547,-589.74,0.00016986,2]
[350114445,1737633056557,-736.76,0.00016986,2]
[350114446,1737633056566,-2009.42,0.00016986,2]
[350114447,1737633056576,-500.0,0.00016986,2]
[350114448,1737633056586,-588.71,0.00016986,2]
[350114449,1737633056596,-352.06346201,0.00016986,2]
[350114450,1737633056605,-508.61277293,0.00016986,2]
[350114451,1737633056615,-500.0,0.00016986,2]
[350114452,1737633056624,-2445.62,0.00016986,2]
[350114453,1737633056634,-500.0,0.00016986,2]
[350114454,1737633056643,-500.0,0.00016986,2]
[350114455,1737633056652,-500.0,0.00016986,2]
[350114456,1737633056662,-1012.38,0.00016986,2]
[350114457,1737633056672,-500.0,0.00016986,2]
[350114458,1737633056681,-500.0,0.00016986,2]
[350114459,1737633056691,-500.0,0.00016986,2]
[350114460,1737633056701,-500.0,0.00016986,2]
[350114461,1737633056710,-504.93008753,0.00016986,2]
[350114462,1737633056720,-500.0,0.00016986,2]
[350114463,1737633056729,-500.0,0.00016986,2]
[350114464,1737633056739,-500.0,0.00016986,2]
[350114465,1737633056748,-500.0,0.00016986,2]
[350114466,1737633056758,-500.0,0.00016986,2]
[350114467,1737633056767,-500.0,0.00016986,2]
[350114468,1737633056777,-500.0,0.00016986,2]
[350114469,1737633056786,-500.0,0.00016986,2]
[350114470,1737633056796,-500.0,0.00016986,2]
[350114471,1737633056805,-500.0,0.00016986,2]
[350114472,1737633056815,-500.0,0.00016986,2]
[350114473,1737633056824,-500.0,0.00016986,2]
[350114474,1737633056834,-9075.94643062,0.00017,2]
[350114475,1737633056843,-600.0,0.00017,2]
[350114476,1737633056852,-151.04794826,0.00017035,2]
[350114477,1737633056862,-153.05144109,0.00017035,2]
[350114478,1737633056871,-500.72027652,0.00017035,2]
[350114479,1737633056880,-160.05476101,0.00017035,2]
[350114480,1737633056890,-182.11342486,0.00017057,2]
[350114481,1737633056900,-500.0,0.00017061,2]
[350114482,1737633056909,-166.82370333,0.00017075,2]
[350114483,1737633056919,-1842.01781,0.0001708,2]
[350114484,1737633056929,-1000.0,0.00017156,2]
[350114485,1737633056939,-695.3,0.00017156,2]
[350114486,1737633056949,-817.68,0.00017156,2]
[350114487,1737633056958,-859.47,0.00017156,2]
[350114488,1737633056968,-1239.54,0.00017156,2]
[350114489,1737633056977,-952.19,0.00017156,2]
[350114490,1737633056987,-2178.87,0.00017156,2]
[350114491,1737633056997,-4339.31,0.00017156,2]
[350114492,1737633057007,-862.85,0.00017156,2]
[350114493,1737633057016,-827.42,0.00017156,2]
[350114494,1737633057026,-1819.66,0.00017156,2]
[350114495,1737633057035,-500.0,0.00017156,2]
[350114496,1737633057044,-831.44,0.00017156,2]
[350114497,1737633057054,-1101.93,0.00017156,2]
[350114498,1737633057063,-1272.01,0.00017156,2]
[350114499,1737633057072,-500.0,0.00017156,2]
[350114500,1737633057082,-1150.43,0.00017156,2]
[350114501,1737633057091,-500.0,0.00017156,2]
[350114502,1737633057100,-1409.13,0.00017156,2]
[350114503,1737633057110,-1591.32,0.00017156,2]
[350114504,1737633057119,-500.0,0.00017157,2]
[350114505,1737633057129,-500.0,0.00017157,2]
[350114506,1737633057138,-500.0,0.00017157,2]
[350114507,1737633057148,-500.0,0.00017157,2]
[350114508,1737633057157,-805.38,0.00017157,2]
[350114509,1737633057167,-500.0,0.00017157,2]
[350114510,1737633057176,-770.21,0.00017157,2]
[350114511,1737633057185,-565.36,0.00017157,2]
[350114512,1737633057195,-500.0,0.00017157,2]
[350114513,1737633057204,-487.66188829,0.00017157,2]
[350114514,1737633057214,-500.0,0.00017157,2]
[350114515,1737633057223,-500.0,0.00017157,2]
[350114516,1737633057232,-500.0,0.00017157,2]
[350114517,1737633057241,-500.0,0.00017157,2]
[350114518,1737633057251,-500.0,0.00017157,2]
[350114519,1737633057260,-500.0,0.00017157,2]
[350114520,1737633057269,-500.0,0.00017157,2]
[350114521,1737633057278,-500.0,0.00017157,2]
[350114522,1737633057288,-500.0,0.0001719,2]
[350114523,1737633057302,-501.07147184,0.00017191,2]
[350114524,1737633057312,-9003.4952725,0.00017247,2]
[350114525,1737633057321,-3782.8282271,0.00017248,2]
[350114526,1737633057331,-500.0,0.00017259,2]
[350114527,1737633057341,-715.55,0.0001726,2]
[350114528,1737633057351,-500.0,0.0001726,2]
[350114529,1737633057360,-500.0,0.0001726,2]
[350114530,1737633057371,-500.0,0.0001726,2]
[350114531,1737633057382,-500.0,0.0001726,2]
[350114532,1737633057391,-500.0,0.0001726,2]
[350114533,1737633057400,-493.33261238,0.0001726,2]
[350114534,1737633057410,-634.28349459,0.0001726,2]
[350114535,1737633057419,-500.0,0.0001726,2]
[350114536,1737633057428,-570.48708513,0.0001726,2]
[350114537,1737633057438,-500.0,0.0001726,2]
[350114538,1737633057447,-500.0,0.0001726,2]
[350114539,1737633057456,-500.0,0.0001726,2]
[350114540,1737633057466,-500.0,0.0001726,2]
[350114541,1737633057475,-500.0,0.0001726,2]
[350114542,1737633057484,-500.0,0.0001726,2]
[350114543,1737633057493,-500.0,0.0001726,2]
[350114544,1737633057502,-500.0,0.0001726,2]
[350114545,1737633057511,-500.0,0.0001726,2]
[350114546,1737633057520,-500.0,0.0001726,2]
[350114547,1737633057529,-500.0,0.0001726,2]
[350114548,1737633057539,-500.0,0.0001726,2]
[350114549,1737633057548,-500.0,0.0001726,2]
[350114550,1737633057558,-500.0,0.0001726,2]
[350114551,1737633057567,-500.0,0.0001726,2]
[350114552,1737633057576,-500.0,0.0001726,2]
[350114553,1737633057586,-460.69271154,0.0001726,2]
[350114554,1737633057595,-500.0,0.0001726,2]
[350114555,1737633057604,-393.24840082,0.0001726,2]
[350114556,1737633057613,-500.0,0.0001726,2]
[350114557,1737633057623,-500.0,0.0001726,2]
[350114558,1737633057632,-500.0,0.0001726,2]
[350114559,1737633057642,-500.0,0.0001726,2]
[350114560,1737633057651,-500.0,0.0001726,2]
[350114561,1737633057661,-500.0,0.0001726,2]
[350114562,1737633057671,-500.0,0.0001726,2]
[350114563,1737633057680,-637.57222417,0.0001726,2]
[350114564,1737633057690,-202.08,0.0001726,2]
[350114565,1737633057700,-500.0,0.0001726,2]
[350114566,1737633057710,-500.0,0.0001726,2]
[350114567,1737633057719,-516.81852952,0.0001726,2]
[350114568,1737633057728,-572.28,0.0001726,2]
[350114569,1737633057737,-500.0,0.0001726,2]
[350114570,1737633057747,-500.0,0.0001726,2]
[350114571,1737633057756,-282.27523107,0.0001726,2]
[350114572,1737633057767,-500.0,0.0001726,2]
[350114573,1737633057776,-500.0,0.0001726,2]
[350114574,1737633057786,-500.0,0.0001726,2]
[350114575,1737633057795,-500.0,0.0001726,2]
[350114576,1737633057804,-820.78,0.0001726,2]
[350114577,1737633057814,-500.0,0.0001726,2]
[350114578,1737633057823,-500.0,0.0001726,2]
[350114579,1737633057833,-500.0,0.0001726,2]
[350114580,1737633057843,-500.0,0.0001726,2]
[350114581,1737633057852,-500.0,0.0001726,2]
[350114582,1737633057861,-500.0,0.0001726,2]
[350114583,1737633057871,-500.0,0.0001726,2]
[350114584,1737633057880,-500.0,0.0001726,2]
[350114585,1737633057890,-500.0,0.0001726,2]
[350114586,1737633057899,-500.0,0.0001726,2]
[350114587,1737633057909,-500.0,0.0001726,2]
[350114588,1737633057918,-500.0,0.0001726,2]
[350114589,1737633057928,-500.0,0.0001726,2]
[350114590,1737633057937,-500.0,0.0001726,2]
[350114591,1737633057947,-500.0,0.0001726,2]
[350114592,1737633057956,-500.0,0.0001726,2]
[350114593,1737633057966,-500.0,0.0001726,2]
[350114594,1737633057976,-500.0,0.0001726,2]
[350114595,1737633057985,-500.0,0.0001726,2]
[350114596,1737633057994,-500.0,0.0001726,2]
[350114597,1737633058003,-500.0,0.0001726,2]
[350114598,1737633058013,-500.0,0.0001726,2]
[350114599,1737633058023,-500.0,0.0001726,2]
[350114600,1737633058033,-500.0,0.0001726,2]
[350114601,1737633058043,-398.46120709,0.0001726,2]
[350114602,1737633058051,-500.0,0.0001726,2]
[350114603,1737633058061,-1034.6,0.0001726,2]
[350114604,1737633058069,-500.0,0.0001726,2]
[350114605,1737633058078,-516.56017609,0.0001726,2]
[350114606,1737633058088,-500.0,0.0001726,2]
[350114607,1737633058098,-500.0,0.0001726,2]
[350114608,1737633058108,-566.21,0.0001726,2]
[350114609,1737633058118,-500.0,0.0001726,2]
[350114610,1737633058127,-500.0,0.0001726,2]
[350114611,1737633058136,-500.0,0.0001726,2]
[350114612,1737633058146,-422.330522,0.0001726,2]
[350114613,1737633058156,-500.0,0.0001726,2]
[350114614,1737633058165,-646.55,0.0001726,2]
[350114615,1737633058176,-500.0,0.0001726,2]
[350114616,1737633058187,-500.0,0.0001726,2]
[350114617,1737633058196,-500.0,0.0001726,2]
[350114618,1737633058205,-500.0,0.0001726,2]
[350114619,1737633058215,-500.0,0.0001726,2]
[350114620,1737633058224,-531.083444,0.0001726,2]
[350114621,1737633058234,-500.0,0.0001726,2]
[350114622,1737633058243,-500.0,0.0001726,2]
[350114623,1737633058253,-500.0,0.0001726,2]
[350114624,1737633058263,-500.0,0.0001726,2]
[350114625,1737633058271,-461.67532604,0.0001726,2]
[350114626,1737633058282,-500.0,0.0001726,2]
[350114627,1737633058294,-500.0,0.0001726,2]
[350114628,1737633058303,-500.0,0.0001726,2]
[350114629,1737633058313,-500.0,0.0001726,2]
[350114630,1737633058322,-500.0,0.0001726,2]
[350114631,1737633058331,-500.0,0.0001726,2]
[350114632,1737633058340,-500.0,0.0001726,2]
[350114633,1737633058350,-500.0,0.0001726,2]
[350114634,1737633058359,-500.0,0.0001726,2]
[350114635,1737633058369,-500.0,0.0001726,2]
[350114636,1737633058379,-500.0,0.0001726,2]
[350114637,1737633058388,-500.0,0.0001726,2]
[350114638,1737633058521,-500.0,0.0001726,2]
[350114639,1737633058531,-580.43,0.0001726,2]
[350114640,1737633058541,-500.0,0.0001726,2]
[350114641,1737633058551,-640.69,0.0001726,2]
[350114642,1737633058562,-500.0,0.0001726,2]
[350114643,1737633058572,-500.0,0.0001726,2]
[350114644,1737633058582,-500.0,0.0001726,2]
[350114645,1737633058591,-500.0,0.0001726,2]
[350114646,1737633058601,-706.83,0.0001726,2]
[350114647,1737633058610,-500.0,0.0001726,2]
[350114648,1737633058619,-500.0,0.0001726,2]
[350114649,1737633058629,-500.0,0.0001726,2]
[350114650,1737633058639,-500.0,0.0001726,2]
[350114651,1737633058649,-500.0,0.0001726,2]
[350114652,1737633058658,-500.0,0.0001726,2]
[350114653,1737633058667,-691.97,0.0001726,2]
[350114654,1737633058677,-500.0,0.0001726,2]
[350114655,1737633058687,-570.8,0.0001726,2]
[350114656,1737633058697,-500.0,0.0001726,2]